[Event "Early-Titled-Tuesday-Blitz-February-13-2024"]
[Site "Chess.com"]
[Date "2024.02.13"]
[Round "1"]
[White "vaniavindy"]
[Black "jaskol95"]
[Result "0-1"]
[WhiteElo "2149"]
[BlackElo "2578"]
[TimeControl "180+1"]
[EndTime "8:07:04 PST"]
[Termination "jaskol95 won on time"]

1. d4 {[%clk 0:02:59.6]} 1... e6 {[%clk 0:02:59.6]} 2. a3 {[%clk 0:02:57.4]}
2... f5 {[%clk 0:02:49.4]} 3. c4 {[%clk 0:02:56.7]} 3... Nf6 {[%clk 0:02:49.5]}
4. Nc3 {[%clk 0:02:55]} 4... Be7 {[%clk 0:02:49.9]} 5. Nf3 {[%clk 0:02:47.9]}
5... O-O {[%clk 0:02:49.8]} 6. Bf4 {[%clk 0:02:46]} 6... b6 {[%clk 0:02:45.5]}
7. e3 {[%clk 0:02:43.5]} 7... Bb7 {[%clk 0:02:45.9]} 8. Be2 {[%clk 0:02:41.1]}
8... d6 {[%clk 0:02:43.6]} 9. O-O {[%clk 0:02:38.1]} 9... h6 {[%clk 0:02:42.3]}
10. Bg3 {[%clk 0:02:30.7]} 10... Nbd7 {[%clk 0:02:28]} 11. Nh4 {[%clk
0:02:24.2]} 11... Qe8 {[%clk 0:02:20.7]} 12. d5 {[%clk 0:02:17.2]} 12... g5
{[%clk 0:01:51.9]} 13. dxe6 {[%clk 0:02:08.6]} 13... gxh4 {[%clk 0:01:52.1]} 14.
exd7 {[%clk 0:02:09]} 14... Qg6 {[%clk 0:01:50]} 15. Bf3 {[%clk 0:01:34.3]}
15... Bxf3 {[%clk 0:01:49.5]} 16. Qxf3 {[%clk 0:01:35.2]} 16... hxg3 {[%clk
0:01:49.8]} 17. fxg3 {[%clk 0:00:47.6]} 17... Rad8 {[%clk 0:00:59.1]} 18. Qxf5
{[%clk 0:00:22.7]} 18... Qxf5 {[%clk 0:00:59.1]} 19. Rxf5 {[%clk 0:00:23.4]}
19... Nxd7 {[%clk 0:00:57.6]} 20. Rxf8+ {[%clk 0:00:14.5]} 20... Rxf8 {[%clk
0:00:56.6]} 21. Nd5 {[%clk 0:00:15.1]} 21... Bd8 {[%clk 0:00:56.2]} 22. b4
{[%clk 0:00:13.2]} 22... c6 {[%clk 0:00:54]} 23. Nf4 {[%clk 0:00:11.5]} 23...
Bf6 {[%clk 0:00:48.1]} 24. Rd1 {[%clk 0:00:10.9]} 24... Be5 {[%clk 0:00:46.8]}
25. Ng6 {[%clk 0:00:07.7]} 25... Re8 {[%clk 0:00:21.2]} 26. Nxe5 {[%clk
0:00:03.2]} 26... Nxe5 {[%clk 0:00:22]} 27. Rxd6 {[%clk 0:00:01.5]} 27... Kg7
{[%clk 0:00:18.5]} 0-1

[Event "Early-Titled-Tuesday-Blitz-February-13-2024"]
[Site "Chess.com"]
[Date "2024.02.13"]
[Round "1"]
[White "soloderisas"]
[Black "Shield12"]
[Result "0-1"]
[WhiteElo "2534"]
[BlackElo "3001"]
[TimeControl "180+1"]
[EndTime "8:07:07 PST"]
[Termination "Shield12 won by resignation"]

1. d4 {[%clk 0:02:59.9]} 1... Nf6 {[%clk 0:02:59.7]} 2. Nf3 {[%clk 0:02:58.6]}
2... e6 {[%clk 0:03:00.6]} 3. Bf4 {[%clk 0:02:58.5]} 3... b6 {[%clk 0:03:00.3]}
4. Nbd2 {[%clk 0:02:57.7]} 4... Bb7 {[%clk 0:03:00.4]} 5. e3 {[%clk 0:02:58]}
5... g6 {[%clk 0:02:58.5]} 6. h3 {[%clk 0:02:56.9]} 6... Bg7 {[%clk 0:02:58.5]}
7. Be2 {[%clk 0:02:56.6]} 7... O-O {[%clk 0:02:58.4]} 8. O-O {[%clk 0:02:56.3]}
8... d6 {[%clk 0:02:58.1]} 9. a4 {[%clk 0:02:55.3]} 9... a6 {[%clk 0:02:57.4]}
10. a5 {[%clk 0:02:53.6]} 10... b5 {[%clk 0:02:57.1]} 11. c4 {[%clk 0:02:54.2]}
11... bxc4 {[%clk 0:02:58]} 12. Bxc4 {[%clk 0:02:53.4]} 12... Nbd7 {[%clk
0:02:53.2]} 13. Bh2 {[%clk 0:02:48.8]} 13... Qe7 {[%clk 0:02:51.1]} 14. Qb3
{[%clk 0:02:33.7]} 14... Rfb8 {[%clk 0:02:50.6]} 15. Qa3 {[%clk 0:02:29.2]}
15... Ne4 {[%clk 0:02:47.8]} 16. Nxe4 {[%clk 0:02:25.3]} 16... Bxe4 {[%clk
0:02:48.7]} 17. Nd2 {[%clk 0:02:25.5]} 17... Bb7 {[%clk 0:02:47.8]} 18. Rac1
{[%clk 0:02:22.2]} 18... h5 {[%clk 0:02:43.6]} 19. Be2 {[%clk 0:02:20.1]} 19...
Rc8 {[%clk 0:02:42.2]} 20. Rc2 {[%clk 0:02:16.7]} 20... Nf6 {[%clk 0:02:28.8]}
21. Rfc1 {[%clk 0:02:15.8]} 21... Qd7 {[%clk 0:02:29.2]} 22. Bf3 {[%clk
0:01:43.3]} 22... Bxf3 {[%clk 0:02:26.1]} 23. Nxf3 {[%clk 0:01:44.2]} 23... Rab8
{[%clk 0:02:22.6]} 24. Rc6 {[%clk 0:01:43.2]} 24... Nd5 {[%clk 0:02:05.7]} 25.
Rxa6 {[%clk 0:01:23.3]} 25... Qb5 {[%clk 0:02:05.3]} 26. Rac6 {[%clk 0:01:07.2]}
26... Ra8 {[%clk 0:02:02.9]} 27. a6 {[%clk 0:01:03.4]} 27... Bf8 {[%clk
0:01:53.2]} 28. a7 {[%clk 0:00:50.8]} 28... Qb7 {[%clk 0:01:39.9]} 29. Ra6
{[%clk 0:00:44.4]} 29... Nb4 {[%clk 0:01:36.5]} 30. Ra4 {[%clk 0:00:42.2]} 30...
Nc6 {[%clk 0:01:36.1]} 31. Ra1 {[%clk 0:00:26.2]} 31... Be7 {[%clk 0:01:27.5]}
32. Bf4 {[%clk 0:00:25.2]} 32... e5 {[%clk 0:01:26.2]} 33. Bg5 {[%clk
0:00:23.8]} 33... f6 {[%clk 0:01:20.5]} 34. Bh6 {[%clk 0:00:23.8]} 34... Kh7
{[%clk 0:01:20.2]} 35. dxe5 {[%clk 0:00:20.4]} 35... Kxh6 {[%clk 0:01:15.1]} 36.
exf6 {[%clk 0:00:16]} 36... Bxf6 {[%clk 0:01:14.9]} 37. g4 {[%clk 0:00:15.7]}
37... Bxb2 {[%clk 0:01:02.1]} 38. Qa2 {[%clk 0:00:14.4]} 38... Bxa1 {[%clk
0:00:58.3]} 39. Qf7 {[%clk 0:00:13.7]} 39... Bg7 {[%clk 0:00:56.8]} 40. gxh5
{[%clk 0:00:11.3]} 40... Qb1+ {[%clk 0:00:55.1]} 41. Kg2 {[%clk 0:00:11]} 41...
Qf5 {[%clk 0:00:54.8]} 42. hxg6 {[%clk 0:00:09.8]} 42... Qxg6+ {[%clk 0:00:53]}
0-1

[Event "Early-Titled-Tuesday-Blitz-February-13-2024"]
[Site "Chess.com"]
[Date "2024.02.13"]
[Round "1"]
[White "Daniel_Salinas"]
[Black "Abund"]
[Result "0-1"]
[WhiteElo "2423"]
[BlackElo "2764"]
[TimeControl "180+1"]
[EndTime "8:07:08 PST"]
[Termination "Abund won by resignation"]

1. e4 {[%clk 0:02:54.4]} 1... c6 {[%clk 0:02:59.1]} 2. Nf3 {[%clk 0:02:43.3]}
2... d5 {[%clk 0:03:00]} 3. Nc3 {[%clk 0:02:43.9]} 3... dxe4 {[%clk 0:02:59.8]}
4. Nxe4 {[%clk 0:02:44.8]} 4... Nf6 {[%clk 0:03:00.7]} 5. Qe2 {[%clk 0:02:45.4]}
5... Nxe4 {[%clk 0:03:00.9]} 6. Qxe4 {[%clk 0:02:46.1]} 6... Nd7 {[%clk
0:03:01.7]} 7. Bc4 {[%clk 0:02:46.8]} 7... Nf6 {[%clk 0:03:02.4]} 8. Ne5 {[%clk
0:02:47.5]} 8... e6 {[%clk 0:03:03.2]} 9. Qe2 {[%clk 0:02:47.6]} 9... b5 {[%clk
0:03:03.9]} 10. Bd3 {[%clk 0:02:47.6]} 10... Qc7 {[%clk 0:03:04.2]} 11. a4
{[%clk 0:02:36.4]} 11... Bd6 {[%clk 0:02:57.8]} 12. Nxc6 {[%clk 0:02:36.4]}
12... b4 {[%clk 0:02:49.5]} 13. Nd4 {[%clk 0:02:35.5]} 13... a6 {[%clk 0:02:47]}
14. Nf5 {[%clk 0:02:34.1]} 14... Bf8 {[%clk 0:02:35.9]} 15. b3 {[%clk
0:02:18.7]} 15... g6 {[%clk 0:02:35.5]} 16. Bb2 {[%clk 0:02:15.6]} 16... gxf5
{[%clk 0:02:32.8]} 17. Bxf6 {[%clk 0:02:09.9]} 17... Rg8 {[%clk 0:02:32.5]} 18.
f3 {[%clk 0:02:06.3]} 18... Be7 {[%clk 0:02:25.4]} 19. Bxe7 {[%clk 0:02:04.6]}
19... Qxe7 {[%clk 0:02:26.3]} 20. O-O-O {[%clk 0:02:03.8]} 20... Bb7 {[%clk
0:02:23.5]} 21. Rhe1 {[%clk 0:02:01.3]} 21... Qf6 {[%clk 0:02:21.5]} 22. Kb1
{[%clk 0:01:59.9]} 22... a5 {[%clk 0:02:18]} 23. g3 {[%clk 0:01:58.2]} 23... h5
{[%clk 0:02:06.8]} 24. Bb5+ {[%clk 0:01:51.9]} 24... Kf8 {[%clk 0:02:04.2]} 25.
Qe3 {[%clk 0:01:45]} 25... Bd5 {[%clk 0:01:56.5]} 26. f4 {[%clk 0:01:28.8]}
26... Rc8 {[%clk 0:01:51.5]} 27. Qa7 {[%clk 0:01:24.7]} 27... Kg7 {[%clk
0:01:37.3]} 28. Qxa5 {[%clk 0:01:20.9]} 28... Qd4 {[%clk 0:01:37.5]} 29. Qa6
{[%clk 0:01:13.3]} 29... Rgd8 {[%clk 0:01:21.9]} 30. Be2 {[%clk 0:00:58.3]}
30... Be4 {[%clk 0:01:15.9]} 31. d3 {[%clk 0:00:56.4]} 31... Bd5 {[%clk
0:01:02.7]} 32. Bxh5 {[%clk 0:00:42.7]} 32... Rc7 {[%clk 0:00:44.7]} 33. Re2
{[%clk 0:00:39]} 33... Ra8 {[%clk 0:00:38.5]} 34. Qd6 {[%clk 0:00:37.8]} 34...
Rac8 {[%clk 0:00:34.8]} 35. Qe5+ {[%clk 0:00:35.5]} 35... Qxe5 {[%clk
0:00:34.4]} 36. fxe5 {[%clk 0:00:22.6]} 36... Kh6 {[%clk 0:00:25.6]} 37. g4
{[%clk 0:00:18.9]} 37... Bf3 {[%clk 0:00:25.5]} 38. g5+ {[%clk 0:00:19.2]} 38...
Kxh5 {[%clk 0:00:24.6]} 0-1

[Event "Early-Titled-Tuesday-Blitz-February-13-2024"]
[Site "Chess.com"]
[Date "2024.02.13"]
[Round "1"]
[White "pfalcon1949"]
[Black "Predator0608"]
[Result "0-1"]
[WhiteElo "1912"]
[BlackElo "2555"]
[TimeControl "180+1"]
[EndTime "8:07:09 PST"]
[Termination "Predator0608 won on time"]

1. e4 {[%clk 0:02:54.4]} 1... b6 {[%clk 0:02:56.5]} 2. d4 {[%clk 0:02:51.2]}
2... Bb7 {[%clk 0:02:56.9]} 3. Nc3 {[%clk 0:02:51.7]} 3... g6 {[%clk 0:02:57.4]}
4. Bd3 {[%clk 0:02:52]} 4... Bg7 {[%clk 0:02:57.7]} 5. Nf3 {[%clk 0:02:52.6]}
5... d6 {[%clk 0:02:58.3]} 6. O-O {[%clk 0:02:53]} 6... Nd7 {[%clk 0:02:58.9]}
7. Re1 {[%clk 0:02:51.3]} 7... e6 {[%clk 0:02:59.2]} 8. Bf4 {[%clk 0:02:43.2]}
8... Ne7 {[%clk 0:02:59.4]} 9. e5 {[%clk 0:02:41.2]} 9... O-O {[%clk 0:02:59.9]}
10. exd6 {[%clk 0:02:40.5]} 10... cxd6 {[%clk 0:03:00.5]} 11. Bxd6 {[%clk
0:02:40.6]} 11... Re8 {[%clk 0:02:59.8]} 12. Bxe7 {[%clk 0:02:33.4]} 12... Qxe7
{[%clk 0:03:00.7]} 13. Ne4 {[%clk 0:02:29.2]} 13... Red8 {[%clk 0:02:55.4]} 14.
c3 {[%clk 0:02:28.8]} 14... Rac8 {[%clk 0:02:53.6]} 15. Qe2 {[%clk 0:02:28.2]}
15... Nf8 {[%clk 0:02:43.8]} 16. h4 {[%clk 0:02:21.8]} 16... h5 {[%clk
0:02:42.3]} 17. Nfg5 {[%clk 0:02:16.8]} 17... Qc7 {[%clk 0:02:30]} 18. g4 {[%clk
0:02:12.7]} 18... Qf4 {[%clk 0:02:18.1]} 19. gxh5 {[%clk 0:02:02.9]} 19... Qxh4
{[%clk 0:02:19]} 20. hxg6 {[%clk 0:02:01.6]} 20... Nxg6 {[%clk 0:02:19.9]} 21.
Qf3 {[%clk 0:01:56.4]} 21... f5 {[%clk 0:02:06]} 22. Qg3 {[%clk 0:01:24.3]}
22... Qh6 {[%clk 0:01:50.5]} 23. Nxe6 {[%clk 0:01:17]} 23... Re8 {[%clk
0:01:12.9]} 24. Nxg7 {[%clk 0:00:58.4]} 24... Kxg7 {[%clk 0:01:09.4]} 25. f3
{[%clk 0:00:47]} 25... fxe4 {[%clk 0:01:03.9]} 26. fxe4 {[%clk 0:00:44]} 26...
Rg8 {[%clk 0:00:59]} 27. Re2 {[%clk 0:00:35]} 27... Kh8 {[%clk 0:00:48.4]} 28.
Rh2 {[%clk 0:00:34.5]} 28... Nh4 {[%clk 0:00:48.6]} 29. Rh3 {[%clk 0:00:12.1]}
29... Qe3+ {[%clk 0:00:41.5]} 30. Kh2 {[%clk 0:00:09.2]} 30... Rxg3 {[%clk
0:00:42.4]} 31. Rxg3 {[%clk 0:00:09]} 31... Qf2+ {[%clk 0:00:38.7]} 32. Kh3
{[%clk 0:00:07.4]} 32... Rf8 {[%clk 0:00:37.6]} 33. Rag1 {[%clk 0:00:06.7]}
33... Bc8+ {[%clk 0:00:36.9]} 34. Kxh4 {[%clk 0:00:02.6]} 34... Qf4+ {[%clk
0:00:29.2]} 0-1

[Event "Early-Titled-Tuesday-Blitz-February-13-2024"]
[Site "Chess.com"]
[Date "2024.02.13"]
[Round "1"]
[White "PavelShkapenko"]
[Black "Machteldvf"]
[Result "0-1"]
[WhiteElo "2763"]
[BlackElo "2457"]
[TimeControl "180+1"]
[EndTime "8:07:11 PST"]
[Termination "Machteldvf won by resignation"]

1. e4 {[%clk 0:03:00.9]} 1... c5 {[%clk 0:02:59]} 2. Nc3 {[%clk 0:02:55.2]} 2...
Nc6 {[%clk 0:02:55.3]} 3. g3 {[%clk 0:02:54.2]} 3... Nf6 {[%clk 0:02:53.9]} 4.
Bg2 {[%clk 0:02:53.4]} 4... e6 {[%clk 0:02:49.3]} 5. d3 {[%clk 0:02:34.4]} 5...
d5 {[%clk 0:02:48.5]} 6. exd5 {[%clk 0:02:24.7]} 6... exd5 {[%clk 0:02:47.3]} 7.
Bg5 {[%clk 0:02:23.3]} 7... Be7 {[%clk 0:02:45.8]} 8. Nge2 {[%clk 0:02:19.2]}
8... O-O {[%clk 0:02:44.3]} 9. O-O {[%clk 0:02:11.9]} 9... Be6 {[%clk 0:02:29]}
10. Nf4 {[%clk 0:02:00.5]} 10... Qd7 {[%clk 0:02:19.3]} 11. Bxf6 {[%clk
0:01:56]} 11... Bxf6 {[%clk 0:02:18.4]} 12. Nfxd5 {[%clk 0:01:56.5]} 12... Bxd5
{[%clk 0:02:16.9]} 13. Nxd5 {[%clk 0:01:56.5]} 13... Bxb2 {[%clk 0:02:17.2]} 14.
Rb1 {[%clk 0:01:57]} 14... Bd4 {[%clk 0:02:09.8]} 15. c3 {[%clk 0:01:37.8]}
15... Be5 {[%clk 0:02:09.2]} 16. Re1 {[%clk 0:01:20.4]} 16... Rfe8 {[%clk
0:02:05.9]} 17. Qa4 {[%clk 0:01:20.3]} 17... Rad8 {[%clk 0:02:01.1]} 18. Qb5
{[%clk 0:01:10.1]} 18... Rb8 {[%clk 0:01:41.7]} 19. Qxc5 {[%clk 0:01:08.1]}
19... h6 {[%clk 0:01:24.9]} 20. d4 {[%clk 0:01:06.5]} 20... Bd6 {[%clk
0:01:24.8]} 21. Qb5 {[%clk 0:01:06.4]} 21... Qf5 {[%clk 0:01:09.7]} 22. Ne3
{[%clk 0:00:52.7]} 22... Qg6 {[%clk 0:01:04.2]} 23. Qf5 {[%clk 0:00:44.9]} 23...
Rxe3 {[%clk 0:00:57.3]} 24. Qd7 {[%clk 0:00:36.2]} 24... Re7 {[%clk 0:00:50.5]}
25. Rxe7 {[%clk 0:00:31.1]} 25... Qxb1+ {[%clk 0:00:49.8]} 26. Bf1 {[%clk
0:00:26.4]} 26... Bxe7 {[%clk 0:00:48.4]} 27. Kg2 {[%clk 0:00:26.9]} 27... Qe4+
{[%clk 0:00:46.5]} 28. f3 {[%clk 0:00:27.1]} 28... Qc2+ {[%clk 0:00:46.5]} 29.
Kh3 {[%clk 0:00:26.6]} 29... Rd8 {[%clk 0:00:45.6]} 30. Qxb7 {[%clk 0:00:25.2]}
30... Qxc3 {[%clk 0:00:45.3]} 31. Bb5 {[%clk 0:00:24]} 31... Qxf3 {[%clk
0:00:44.9]} 32. Bxc6 {[%clk 0:00:23.8]} 32... Qf1+ {[%clk 0:00:45.1]} 33. Bg2
{[%clk 0:00:23.4]} 33... Qf5+ {[%clk 0:00:44.1]} 34. g4 {[%clk 0:00:23.9]} 34...
Qd3+ {[%clk 0:00:43]} 35. Bf3 {[%clk 0:00:24.3]} 35... Rxd4 {[%clk 0:00:40.9]}
36. Kg3 {[%clk 0:00:24.5]} 36... Bd6+ {[%clk 0:00:39.8]} 37. Kh3 {[%clk
0:00:24.7]} 37... Rf4 {[%clk 0:00:38.3]} 38. Kg2 {[%clk 0:00:23.8]} 38... Qd2+
{[%clk 0:00:37.7]} 39. Kg1 {[%clk 0:00:21.8]} 39... Qe3+ {[%clk 0:00:33.4]} 40.
Kg2 {[%clk 0:00:21.8]} 40... Qd2+ {[%clk 0:00:31.8]} 41. Kg1 {[%clk 0:00:21.9]}
41... Bc5+ {[%clk 0:00:31.9]} 42. Kh1 {[%clk 0:00:21.3]} 42... Qe1+ {[%clk
0:00:24.2]} 43. Kg2 {[%clk 0:00:21.4]} 43... Qf2+ {[%clk 0:00:24.9]} 0-1

[Event "Early-Titled-Tuesday-Blitz-February-13-2024"]
[Site "Chess.com"]
[Date "2024.02.13"]
[Round "1"]
[White "szachmistrz2500"]
[Black "kpio91"]
[Result "0-1"]
[WhiteElo "2496"]
[BlackElo "2902"]
[TimeControl "180+1"]
[EndTime "8:07:12 PST"]
[Termination "kpio91 won by resignation"]

1. d4 {[%clk 0:03:00.9]} 1... e6 {[%clk 0:03:00]} 2. c4 {[%clk 0:02:59.9]} 2...
Nf6 {[%clk 0:02:58.8]} 3. Nf3 {[%clk 0:02:59.4]} 3... b6 {[%clk 0:02:55.4]} 4.
a3 {[%clk 0:02:59.1]} 4... Ba6 {[%clk 0:02:55]} 5. e3 {[%clk 0:02:44.4]} 5... d5
{[%clk 0:02:51.1]} 6. Nbd2 {[%clk 0:02:38.6]} 6... Be7 {[%clk 0:02:49.4]} 7. b4
{[%clk 0:02:31.3]} 7... O-O {[%clk 0:02:46.8]} 8. Be2 {[%clk 0:02:26]} 8... dxc4
{[%clk 0:02:31.4]} 9. Bxc4 {[%clk 0:02:16.4]} 9... Bb7 {[%clk 0:02:29.4]} 10.
Bb2 {[%clk 0:02:11.9]} 10... Nbd7 {[%clk 0:02:28.7]} 11. O-O {[%clk 0:02:09.4]}
11... a5 {[%clk 0:02:16.7]} 12. b5 {[%clk 0:02:01.8]} 12... a4 {[%clk
0:02:12.3]} 13. Qe2 {[%clk 0:01:58.2]} 13... c6 {[%clk 0:02:11.5]} 14. e4 {[%clk
0:01:51.8]} 14... cxb5 {[%clk 0:02:04.4]} 15. Bxb5 {[%clk 0:01:51.7]} 15... Ra7
{[%clk 0:02:04.5]} 16. Rac1 {[%clk 0:01:35.5]} 16... Qa8 {[%clk 0:01:35.4]} 17.
Rfe1 {[%clk 0:01:31.2]} 17... Rd8 {[%clk 0:01:33.4]} 18. h3 {[%clk 0:01:25.4]}
18... Nf8 {[%clk 0:01:29.4]} 19. Ne5 {[%clk 0:01:22.1]} 19... Ng6 {[%clk
0:01:18.1]} 20. Nc6 {[%clk 0:01:21.9]} 20... Bxc6 {[%clk 0:01:16.7]} 21. Bxc6
{[%clk 0:01:22]} 21... Qb8 {[%clk 0:01:17.1]} 22. d5 {[%clk 0:01:05.3]} 22...
Nf4 {[%clk 0:00:59]} 23. Qf3 {[%clk 0:01:04]} 23... exd5 {[%clk 0:00:47.4]} 24.
e5 {[%clk 0:01:01.6]} 24... N6h5 {[%clk 0:00:27.3]} 25. g4 {[%clk 0:00:56.5]}
25... Bg5 {[%clk 0:00:27.1]} 26. Rc2 {[%clk 0:00:44.9]} 26... Rc7 {[%clk
0:00:21.4]} 27. gxh5 {[%clk 0:00:40.8]} 27... Ne6 {[%clk 0:00:21.5]} 28. Qd3
{[%clk 0:00:11.2]} 28... Qc8 {[%clk 0:00:10.4]} 29. Rec1 {[%clk 0:00:08.8]}
29... Nf4 {[%clk 0:00:09.8]} 30. Qg3 {[%clk 0:00:07.1]} 30... Ne2+ {[%clk
0:00:09.5]} 0-1

[Event "Early-Titled-Tuesday-Blitz-February-13-2024"]
[Site "Chess.com"]
[Date "2024.02.13"]
[Round "1"]
[White "Trendle"]
[Black "johnmez"]
[Result "1-0"]
[WhiteElo "2630"]
[BlackElo "2278"]
[TimeControl "180+1"]
[EndTime "8:07:12 PST"]
[Termination "Trendle won by resignation"]

1. e4 {[%clk 0:02:59.4]} 1... e6 {[%clk 0:02:59.8]} 2. d4 {[%clk 0:02:58.7]}
2... d5 {[%clk 0:02:58.1]} 3. Nd2 {[%clk 0:02:59.4]} 3... Be7 {[%clk 0:02:56.9]}
4. e5 {[%clk 0:02:56.7]} 4... c5 {[%clk 0:02:56.5]} 5. c3 {[%clk 0:02:56.6]}
5... Nc6 {[%clk 0:02:55.9]} 6. Bd3 {[%clk 0:02:56.6]} 6... cxd4 {[%clk
0:02:50.8]} 7. cxd4 {[%clk 0:02:57.5]} 7... Nh6 {[%clk 0:02:41.6]} 8. Ne2 {[%clk
0:02:51.9]} 8... Nf5 {[%clk 0:02:35]} 9. Nf3 {[%clk 0:02:50.2]} 9... O-O {[%clk
0:02:27.7]} 10. O-O {[%clk 0:02:50.2]} 10... Qb6 {[%clk 0:02:24.9]} 11. g4
{[%clk 0:02:31.1]} 11... Nh4 {[%clk 0:02:10.1]} 12. Nxh4 {[%clk 0:02:30.4]}
12... Bxh4 {[%clk 0:02:11]} 13. Be3 {[%clk 0:02:22.2]} 13... Be7 {[%clk
0:02:07.7]} 14. f4 {[%clk 0:02:18.4]} 14... f6 {[%clk 0:02:03]} 15. Qd2 {[%clk
0:02:12.1]} 15... f5 {[%clk 0:01:53.6]} 16. gxf5 {[%clk 0:02:03.1]} 16... exf5
{[%clk 0:01:54.5]} 17. Kh1 {[%clk 0:02:03]} 17... Be6 {[%clk 0:01:53.9]} 18. Rg1
{[%clk 0:02:02.5]} 18... Rf7 {[%clk 0:01:52.4]} 19. Rg2 {[%clk 0:02:00.5]} 19...
g6 {[%clk 0:01:39.3]} 20. Rag1 {[%clk 0:01:55]} 20... Kh8 {[%clk 0:01:39.6]} 21.
Bf2 {[%clk 0:01:50.1]} 21... Rg8 {[%clk 0:01:29.5]} 22. h4 {[%clk 0:01:49.7]}
22... Rfg7 {[%clk 0:01:22.7]} 23. Bb1 {[%clk 0:01:41.4]} 23... Qd8 {[%clk
0:01:17]} 24. h5 {[%clk 0:01:36.6]} 24... Bh4 {[%clk 0:01:05.2]} 25. Bxh4 {[%clk
0:01:28.2]} 25... Qxh4+ {[%clk 0:01:03.4]} 26. Rh2 {[%clk 0:01:29.1]} 26... Qe7
{[%clk 0:00:58.2]} 27. Rg5 {[%clk 0:01:23.8]} 27... Qb4 {[%clk 0:00:34.9]} 28.
Qxb4 {[%clk 0:01:16.7]} 28... Nxb4 {[%clk 0:00:35.8]} 29. Ng3 {[%clk 0:01:15.5]}
29... gxh5 {[%clk 0:00:34.5]} 30. Rxg7 {[%clk 0:01:13]} 30... Rxg7 {[%clk
0:00:33.2]} 31. Nxf5 {[%clk 0:01:06.5]} 31... Bxf5 {[%clk 0:00:32.1]} 32. Bxf5
{[%clk 0:01:07.4]} 32... Rf7 {[%clk 0:00:29.9]} 33. Rxh5 {[%clk 0:01:05.9]}
33... Nc6 {[%clk 0:00:28.6]} 34. Kg2 {[%clk 0:00:58.4]} 34... Nxd4 {[%clk
0:00:28.6]} 35. e6 {[%clk 0:00:50.4]} 35... Re7 {[%clk 0:00:08.7]} 36. Bxh7
{[%clk 0:00:49.6]} 36... Kg7 {[%clk 0:00:05.2]} 37. f5 {[%clk 0:00:46.2]} 37...
Kf6 {[%clk 0:00:05.2]} 38. Bg6 {[%clk 0:00:35.1]} 38... Rg7 {[%clk 0:00:03.6]}
39. Kf2 {[%clk 0:00:30.4]} 39... Nxf5 {[%clk 0:00:02.8]} 40. Bxf5 {[%clk
0:00:29.8]} 1-0

[Event "Early-Titled-Tuesday-Blitz-February-13-2024"]
[Site "Chess.com"]
[Date "2024.02.13"]
[Round "1"]
[White "ProChessWICTH"]
[Black "Sina_Movahed"]
[Result "0-1"]
[WhiteElo "2527"]
[BlackElo "2992"]
[TimeControl "180+1"]
[EndTime "8:07:14 PST"]
[Termination "Sina_Movahed won on time"]

1. e4 {[%clk 0:02:50.4]} 1... c5 {[%clk 0:03:00.5]} 2. Nf3 {[%clk 0:02:40]} 2...
d6 {[%clk 0:03:00.2]} 3. c3 {[%clk 0:02:13.5]} 3... Nf6 {[%clk 0:02:59.5]} 4.
Bd3 {[%clk 0:02:04.4]} 4... Nc6 {[%clk 0:02:57.7]} 5. O-O {[%clk 0:01:54.8]}
5... e5 {[%clk 0:02:41.5]} 6. Bc2 {[%clk 0:01:50.5]} 6... d5 {[%clk 0:02:39.4]}
7. exd5 {[%clk 0:01:46.2]} 7... Qxd5 {[%clk 0:02:40.3]} 8. d3 {[%clk 0:00:52.8]}
8... Be7 {[%clk 0:02:33.1]} 9. Nbd2 {[%clk 0:00:52.2]} 9... O-O {[%clk
0:02:31.2]} 10. Nc4 {[%clk 0:00:42.2]} 10... b5 {[%clk 0:01:48.5]} 11. Ne3
{[%clk 0:00:41.9]} 11... Qd7 {[%clk 0:01:47.2]} 12. h3 {[%clk 0:00:23.8]} 12...
Bb7 {[%clk 0:01:45.3]} 13. Re1 {[%clk 0:00:20.2]} 13... Rfe8 {[%clk 0:01:44.5]}
14. Nf1 {[%clk 0:00:19.6]} 14... Bf8 {[%clk 0:01:42.5]} 15. Be3 {[%clk
0:00:19.5]} 15... Nd5 {[%clk 0:01:40.9]} 16. Ng3 {[%clk 0:00:18.1]} 16... f5
{[%clk 0:01:33.7]} 17. Bd2 {[%clk 0:00:15.6]} 17... Kh8 {[%clk 0:01:23.2]} 18.
Bb3 {[%clk 0:00:13.2]} 18... g6 {[%clk 0:01:00]} 19. Qc1 {[%clk 0:00:08.6]}
19... Bg7 {[%clk 0:00:50.8]} 20. Bh6 {[%clk 0:00:08.7]} 20... Na5 {[%clk
0:00:48]} 21. Bxg7+ {[%clk 0:00:08.8]} 21... Qxg7 {[%clk 0:00:48.1]} 22. d4
{[%clk 0:00:08.2]} 22... Nxb3 {[%clk 0:00:41]} 23. axb3 {[%clk 0:00:09.1]} 23...
cxd4 {[%clk 0:00:38.2]} 24. cxd4 {[%clk 0:00:10]} 24... e4 {[%clk 0:00:38]} 25.
Ne5 {[%clk 0:00:10.7]} 25... a6 {[%clk 0:00:34.5]} 26. Ne2 {[%clk 0:00:07.5]}
26... Rad8 {[%clk 0:00:29.2]} 27. Qd2 {[%clk 0:00:05.3]} 27... g5 {[%clk
0:00:18.8]} 28. Rad1 {[%clk 0:00:05.5]} 28... f4 {[%clk 0:00:18.3]} 29. Nc3
{[%clk 0:00:03.9]} 29... e3 {[%clk 0:00:18.8]} 30. fxe3 {[%clk 0:00:03.9]} 30...
Nxe3 {[%clk 0:00:19.7]} 31. Rc1 {[%clk 0:00:04]} 31... Rxe5 {[%clk 0:00:19.1]}
32. Qe2 {[%clk 0:00:04.5]} 32... Rxd4 {[%clk 0:00:18.9]} 0-1